Cogmind - Beta 13 @@@ ROGUE MODE // 2024.05.02 @ 19:16:07 Player: darki Result: Destroyed by GF-IIC(R) with Subdweller Machine Gun Performance ------------- Evolutions (0) 0 Regions Visited (2) 400 Robots Destroyed (25) 125 Value Destroyed (522) 522 Prototype IDs (0) 0 Alien Tech Used (0) 0 Bonus (0) 0 TOTAL SCORE: 1047 Bonus ------- None Cogmind --------- Core Integrity 0/250 Matter 181/300 Energy 100/100 System Corruption 0% Temperature Cool (0) Movement Treading (340) Ox2 Location -10/Subcaves Parts ------- > --- POWER (1) -------- (None) > --- PROPULSION (2) --- Light Treads Spiked Treads > --- UTILITY (2) ------ Huge Storage Unit > --- WEAPON (2) ------- Battle Rifle Subdweller Machine Gun > --- INVENTORY (25) --- Light Treads Light Treads Light Treads Light Treads Light Treads Large Storage Unit Medium Matter Pod (100) Medium Matter Pod (100) Signal Interpreter EM Pulse Gun Assault Rifle Assault Rifle Assault Rifle Light Assault Rifle Battle Rifle Light Cannon Grenade Launcher Mining Laser Flamer Peak State ------------ > --- POWER ------------ Light Nuclear Core > --- PROPULSION ------- Spiked Treads Spiked Treads > --- UTILITY ---------- Heat Sink Huge Storage Unit > --- WEAPON ----------- Subdweller Machine Gun Light Cannon > --- INVENTORY -------- Ion Engine Light Ion Engine Light Treads Light Treads Light Treads Light Treads Light Treads Light Treads Large Storage Unit Medium Matter Pod Medium Matter Pod Signal Interpreter EM Pulse Gun Medium Laser Particle Gun Assault Rifle Assault Rifle Assault Rifle Light Assault Rifle Battle Rifle Grenade Launcher Mining Laser Flamer [Rating: 14] Favorites ----------- Power Light Nuclear Core Engine Ion Engine Power Core Light Nuclear Core Propulsion Light Treads Treads Light Treads Leg Aluminum Leg Utility Heat Sink Device Heat Sink Storage Huge Storage Unit Weapon Medium Laser Energy Gun Medium Laser Ballistic Gun Assault Rifle Ballistic Cannon Light Cannon Special Weapon Mining Laser Build | -11 -10 -10 ------- Run | Yrd Mat Sub Slots Evolved . | . . . Power . | . . . Propulsion . | . . . Utility . | . . . Weapon . | . . . Parts Attached 25 | . 8 17 Power 3 | . 1 2 Engine 2 | . . 2 Core 1 | . 1 . Reactor . | . . . Propulsion 6 | . 3 3 Treads 6 | . 3 3 Leg . | . . . Wheel . | . . . Hover . | . . . Flight . | . . . Utility 3 | . 3 . Device 1 | . 1 . Storage 2 | . 2 . Processor . | . . . Hackware . | . . . Protection . | . . . Artifact . | . . . Weapon 13 | . 1 12 Energy Gun 6 | . 1 5 Energy Cannon . | . . . Ballistic Gun 3 | . . 3 Ballistic Cannon 2 | . . 2 Launcher . | . . . Special Weapon 2 | . . 2 Impact Weapon . | . . . Slashing Weapon . | . . . Piercing Weapon . | . . . Special Melee Weapon . | . . . Unidentified Prototypes . | . . . Parts Lost 6 | . . 6 Power 2 | . . 2 Propulsion 1 | . . 1 Utility 1 | . . 1 Weapon 2 | . . 2 Highest Loss Streak 4 | . . 4 To Critical Strikes . | . . . Average Slot Usage (%) 98 | . 97 99 Engine 3 | . 2 3 Core 10 | . 11 10 Treads 26 | . 26 28 Leg 1 | . 1 . Device 12 | . 10 13 Storage 14 | . 15 14 Energy Gun 19 | . 25 10 Ballistic Gun 3 | . 2 4 Ballistic Cannon 3 | . . 9 Special Weapon 1 | . . 3 Naked Turns . | . . . Heaviest Build 93 | 12 91 93 Greatest Support 40 | 20 40 40 Greatest Overweight (x) 2 | . 2 2 Average Overweight (x) 1 | . 1 2 Largest Inventory Capacity 25 | . 25 25 Average Capacity 23 | . 22 25 Most Carried 24 | . 19 24 Average Carried 17 | . 13 21 Final Capacity 25 | 8 25 25 Final Carried 19 | 6 19 19 Class Distribution -------------------- 100% | Mutant Dominant Class ---------------- Mutant | -10/Materials Mutant | -10/Subcaves Resources | -11 -10 -10 ----------- Run | Yrd Mat Sub Matter Collected 610 | 179 319 112 Remotely . | . . . Salvage Created 884 | . 772 112 Parts 35 | . 27 8 Haulers Intercepted 1 | . 1 . Recyclers Shooed 1 | . 1 . Parts Field Recycled . | . . . Retrieved Matter . | . . . Parts Self-Destructed 2 | . . 2 Prevented . | . . . Kills | -11 -10 -10 ------- Run | Yrd Mat Sub Combat Hostiles Destroyed 16 | . 12 4 Guns 14 | . 12 2 Cannons 2 | . . 2 Classes Destroyed 7 | . 6 1 Worker 1 | . 1 . Hauler 1 | . 1 . Recycler 4 | . 4 . Watcher 3 | . 3 . Swarmer 6 | . 6 . Grunt 6 | . 6 . Subdweller 4 | . . 4 Best Kill Streak 4 | . 4 2 Combat Bots Only 3 | . 3 2 Max Kills in Single Turn 1 | . 1 1 Gunslinging . | . . . Exploded . | . . . Melee . | . . . Uniques/NPCs Destroyed . | . . . Combat | -11 -10 -10 -------- Run | Yrd Mat Sub Hostile Shots Fired 108 | . 51 57 Missed 18 | . 10 8 Damage Taken 1388 | . 388 1000 Core 257 | . 87 170 Absorbed by Shields . | . . . Core Remaining (%) 100 | 100 . . Volleys Fired 96 | . 51 45 Largest 2 | . 2 2 Hottest 115 | . 115 115 Shots Fired 175 | . 102 73 Gun 152 | . 102 50 Cannon 9 | . . 9 Launcher . | . . . Special 14 | . . 14 Kinetic 47 | . 16 31 Thermal 126 | . 86 40 Explosive . | . . . Electromagnetic 2 | . . 2 Robot Hit Streak 19 | . 19 14 Robot Miss Streak 3 | . 3 1 Penetration Max . | . . . Secondary Targets . | . . . Shots Hit Robots 113 | . 77 36 Core Hits 35 | . 28 7 Critical Kills 1 | . 1 . Critical Parts Destroyed . | . . . Critical Strikes 11 | . 6 5 Burn 9 | . 5 4 Destroy 2 | . 1 1 Melee Attacks . | . . . Impact . | . . . Slashing . | . . . Piercing . | . . . Sneak Attacks . | . . . Combat Hostiles . | . . . Follow-up Attacks . | . . . Damage Inflicted 1722 | . 1137 585 Guns 1571 | . 1115 456 Cannons 124 | . . 124 Explosions . | . . . Melee . | . . . Ramming 27 | . 22 5 Kinetic 535 | . 110 425 Thermal 1138 | . 1005 133 Explosive . | . . . Electromagnetic 22 | . . 22 Impact . | . . . Slashing . | . . . Piercing . | . . . Highest Corruption . | . . . Average Corruption . | . . . Corruption Purged . | . . . Corruption Blocked . | . . . Overload Shots . | . . . Overflow Damage . | . . . Projectiles . | . . . Explosions . | . . . Melee . | . . . Knockbacks 1 | . . 1 Impact . | . . . Kinetic 1 | . . 1 Secondary . | . . . Self-Inflicted Damage 5 | . . 5 Shots . | . . . Rammed 10 | . 10 . Targets Rammed 10 | . 10 . Kicked . | . . . Crushed . | . . . Highest Temperature 450 | . 450 . Average Temperature 99 | . 99 . Received Heat Transfer 231 | . 111 120 Effects 1 | . 1 . Shutdowns 1 | . 1 . Siege Activations . | . . . Robots Corrupted . | . . . Combat Hostiles . | . . . Parts Fried . | . . . Impact Corruptions . | . . . Robots Melted 1 | . 1 . Combat Hostiles . | . . . Parts Melted 15 | . 14 1 Heat Transferred 3626 | . 2960 666 Parts Sabotaged . | . . . Parts Stolen . | . . . Parts Stripped . | . . . Power Chain Reactions . | . . . Alert | -11 -10 -10 ------- Run | Yrd Mat Sub Peak Influence 192 | . 192 . Initial . | . . . Average 39 | . 39 . Maximum Alert Level . | . . . Low Security (%) 100 | . 100 . Level 1 . | . . . Level 2 . | . . . Level 3 . | . . . Level 4 . | . . . Level 5 . | . . . High Security . | . . . Max Security . | . . . Squads Dispatched 1 | . 1 . Investigation 1 | . 1 . Extermination . | . . . Reinforcement . | . . . Assault . | . . . Garrison . | . . . Intercept . | . . . Searches Triggered . | . . . Construction Impeded . | . . . Haulers Reinforced . | . . . Active Scanning Responses . | . . . Cargo Convoy Interrupts . | . . . Stealth | -11 -10 -10 --------- Run | Yrd Mat Sub Distress Signals 2 | . 2 . Communications Jammed . | . . . Distress Signals . | . . . Times Spotted 28 | . 23 5 Peak Tracking Total 5 | . 5 2 Tactical Retreats 1 | . 1 . Traps | -11 -10 -10 ------- Run | Yrd Mat Sub Traps Triggered 1 | . 1 . Indirectly . | . . . Trap Hack Attempts . | . . . Triggered . | . . . Disarmed . | . . . Reprogrammed . | . . . Reused 1 | . . 1 Traps Extracted . | . . . Installed 1 | . . 1 Triggered . | . . . Most Traps Carried 1 | . . 1 Machines | -11 -10 -10 ---------- Run | Yrd Mat Sub Machines Disabled 1 | . 1 . Max in Single Turn 1 | . 1 . Machines Repaired . | . . . Machines Dismantled . | . . . Machines Sabotaged . | . . . Overloaded Fab Kills . | . . . Hacking | -11 -10 -10 --------- Run | Yrd Mat Sub Machines Accessed 7 | . 6 1 Terminals 6 | . 6 . Fabricators . | . . . Repair Stations . | . . . Recycling Units . | . . . Scanalyzers . | . . . Garrison Access . | . . . Total Hacks 15 | . 14 1 Successful 7 | . 6 1 Failed 8 | . 8 . Catastrophic 1 | . 1 . Database Lockouts . | . . . Manual 11 | . 11 . Terminals 14 | . 14 . Fabricators . | . . . Repair Stations . | . . . Recycling Units . | . . . Scanalyzers . | . . . Garrison Access . | . . . Terminal Hacks 7 | . 6 1 Record 1 | . . 1 Robot Analysis 5 | . 5 . Hauler Manifests 1 | . 1 . Fabricator Hacks . | . . . Repair Station Hacks . | . . . Recycling Unit Hacks . | . . . Scanalyzer . | . . . Garrison Access Hacks . | . . . Unauthorized Hacks . | . . . Terminals . | . . . Fabricators . | . . . Repair Stations . | . . . Recycling Units . | . . . Scanalyzers . | . . . Garrison Access . | . . . Data Cores Recovered . | . . . Used . | . . . Hacking Detections 5 | . 5 . Full Trace Events . | . . . Feedback Events . | . . . Feedback Blocked . | . . . Robot Schematics Acquired . | . . . Robots Built . | . . . Authchips . | . . . Time . | . . . Total Robot Build Rating . | . . . Part Schematics Acquired . | . . . Parts Built . | . . . Authchips . | . . . Time . | . . . Total Part Build Rating . | . . . Parts Repaired . | . . . Time . | . . . Parts Recycled . | . . . Recycled Matter . | . . . Retrieved Matter . | . . . Retrieved Components . | . . . Parts Scanalyzed . | . . . Part Schematics Acquired . | . . . Parts Damaged . | . . . Bothacking | -11 -10 -10 ------------ Run | Yrd Mat Sub Used RIF Installer . | . . . Robots Hacked . | . . . Non-combat . | . . . Combat . | . . . Robot Hacks Applied . | . . . Relay Couplers Released . | . . . Fabnet Peak Effective % . | . . . Robots Rewired . | . . . Allies Hacked . | . . . Hacks Repelled . | . . . Allies | -11 -10 -10 -------- Run | Yrd Mat Sub Total Allies . | . . . Largest Group . | . . . Highest-Rated Group . | . . . Highest-Rated Ally . | . . . Total Orders . | . . . Ally Attacks . | . . . Total Damage . | . . . Kills . | . . . Allies Corrupted . | . . . Allies Melted . | . . . Intel | -11 -10 -10 ------- Run | Yrd Mat Sub Robot Analysis Total 5 | . 5 . Derelict Logs Recovered 1 | . . 1 Drone Launches . | . . . Drone Recoveries . | . . . Exploration | -11 -10 -10 ------------- Run | Yrd Mat Sub Turns Passed 3785 | . 2172 1613 Spaces Moved 1127 | 1 723 403 Core . | . . . Treads 1042 | . 639 403 Legs 85 | 1 84 . Wheels . | . . . Hover . | . . . Flight . | . . . Fastest Speed 120 | 120 120 320 Average Speed 296 | 120 265 352 Slowest Speed 360 | 120 320 360 Overloaded Moves . | . . . Propulsion Burnouts . | . . . Robots Hopped . | . . . Cave-ins Triggered . | . . . Exploration Rate (%) 40 | 2 96 24 Regions Visited 2 Branch Regions 1 Pre-discovered Areas . | . . . Known Exits Taken . | . . . Unknown Exits Taken 2 | 1 1 . Scrap Searched 2 | . . 2 Spaces Dug . | . . . Terrain Destroyed . | . . . Melee . | . . . Projectile . | . . . AOE . | . . . Terrain Rammed 1 | . . 1 Walls Destroyed . | . . . Machines Disabled . | . . . Actions | -11 -10 -10 --------- Run | Yrd Mat Sub Total 1341 | . 852 489 Wait 54 | . 38 16 Move 1125 | . 722 403 Hop . | . . . Pick Up 18 | . 15 3 Fast Attach 5 | . 3 2 Attach 6 | . 2 4 Detach 1 | . 1 . Swap 14 | . 3 11 Drop 10 | . 7 3 Fire 96 | . 51 45 Melee . | . . . Ram 1 | . . 1 Kick . | . . . Crush 10 | . 10 . Escape Stasis . | . . . Rewire . | . . . Trap 1 | . . 1 Miscellaneous . | . . . Route ------- -11/Scrapyard -10/Materials (discovered 6 exits: [*Mat x3] / [*Min x2] / *Sub) -10/Subcaves (discovered 1 exit: [*Mat]) History --------- Turn | Location | Event 1 | -11/Scrapyard | Discovered new exit (range 0) 1 | -11/Scrapyard | Entered Materials 192 | -10/Materials | Discovered new exit (range 15) 300 | -10/Materials | Build established: Mutant 330 | -10/Materials | Discovered new exit (range 9) 848 | -10/Materials | Discovered new exit (range 15) 1375 | -10/Materials | Discovered new exit (range 12) 1459 | -10/Materials | Discovered new exit (range 15) 2154 | -10/Materials | Discovered new exit (range 7) 2173 | -10/Materials | Entered Subcaves 2176 | -10/Subcaves | Shifting Twisted Machinery released Spk. Treads 2177 | -10/Subcaves | Shifting Twisted Machinery released Spk. Treads 2628 | -10/Subcaves | Shifting Twisted Machinery released Shrapnel Trap 2628 | -10/Subcaves | Shifting Twisted Machinery released Spk. Treads 2872 | -10/Subcaves | A swath of the cavern ceiling suddenly collapsed 3106 | -10/Subcaves | Visited Clippyterm 3540 | -10/Subcaves | Core integrity fell below 50% 3636 | -10/Subcaves | Discovered new exit (range 7) 3731 | -10/Subcaves | Shifting Twisted Machinery released Sub. Laser 3768 | -10/Subcaves | Core integrity fell below 20% 3786 | -10/Subcaves | Destroyed by GF-IIC(R) with Subdweller Machine Gun Last Messages --------------- 03564_ E1-HO2(R) destroyed. 03566_ 3B-LJ4(R) destroyed. 03568_ Subatomizers dissect the Disposable Heat Sink. 03568_ Acquired 35 matter. 03572_ Acquired 20 matter. 03579_ Acquired Battle Rifle. 03582_ Subatomizers dissect the Disposable Heat Sink. 03585_ Acquired 7 matter. 03589_ Acquired 2 matter. 03596_ Subatomizers dissect the Disposable Heat Sink. 03636_ EXIT=FOUND Sub. Laser falls loose from the Twisted Machinery. 03746_ Ion Engine destroyed. 03758_ Heat Sink destroyed. 03761_ Spk. Treads destroyed. 03773_ GF-IIC(R) suffers critical hit (Destroy). 03773_ VQ-UIO(R) destroyed. 03779_ GF-IIC(R) affixes Scrap Shield Fragment to Scrap Shield. 03780_ Subatomizers dissect the Sub. Power Source. 03780_ Lgt. Ion Engine destroyed. Map ----- +----------------------------------------------------+ | | | | | | | ?????????????????????????????????????????????????? | | ?????????????????????????????????????????????????? | | ?????????????????????????????????????????????????? | | ?????????????????????????????????????????????????? | | ?????????????????????????????????????????????????? | | ?????????????????????????????????????????????????? | | ?????????????????????????????????????????????????? | | ?????????????????????????????????????????????????? | | ?????????????????????????????????????????????????? | | ?????????????????????????????????????????????????? | | ?????????????????????????????????????????????????? | | ?????????????????????????????????????????????????? | | ?????????????????????????????????????????????????? | | ?????????????????????????????????????????????????? | | ?????????????????????????????????????????????????? | | ???????????????????????##########???####?????????? | | ??????????????????????## ## # ##### #?????????? | | ????????????????????### # #########?? | | ????????????????????# # < # ## ### | | ????????????????????## # # | | ?????????????????????# ######## ## | | ?????????????????????# ##???## "" ### ## | | ?????????????????????# @R ##???## "" ### | | ?????????????????????### !% ##???### ## | | ???????????????????????##"* #?????### # # | | ????????????????????????## #???????##### | | ?????????????????????????# #?????????# ### | | ?????????????????????????# #?????????# ??## | | ???????????????????????? ?????????# ???## | | ???????????????????????" ???????? ????## | | ??????????????????????"" "?????? ?????# | | ?????????????????????"" ""???? ????? | | ?????????????????????"""" ## "" ??? ? ?????? | | ?????????????????????##"" ??# ""[ ?? ? ?????? # | | ??????????????????????##" #???"" ? ? ??????#? | | ???????????????????????#"#????""?? ? ???????? | | ????????????????????????#?????""????? ?? ???????? | | ???????????????????????????????????????? ????????? | | ?????????????????????????????????????????????????? | | ?????????????????????????????????????????????????? | | ?????????????????????????????????????????????????? | | ?????????????????????????????????????????????????? | | ?????????????????????????????????????????????????? | | ?????????????????????????????????????????????????? | | ?????????????????????????????????????????????????? | | ?????????????????????????????????????????????????? | | ?????????????????????????????????????????????????? | +----------------------------------------------------+ Best States ------------- Heat Dissipation 35 Energy Generation 14 Energy Capacity 250 Matter Stores 300 Matter Capacity 300 Sight Range 16 Terrain Scan Density 10 Evasion (%) 55 Recoil Reduction 2 Item Schematics ----------------- None Robot Schematics ------------------ None Fabricated ------------ Nothing Alien Tech Used ----------------- None Achievements -------------- None Challenges ------------ None Game ------ Seed ParticleGravitonGravjet Manual? 0 Play Time 00:16:58 Cumulative 246.5 hours Start 2024.05.02 @ 19:03:08 End 2024.05.02 @ 19:16:07 Sessions 1 Manual Loads 0 Difficulty Rogue Special Mode None Game No. 237 Rogue 237 Adventurer 0 Explorer 0 Win Type - Total 8 Types 5/0/1/1/1/0/0/0/0 Lore% 73 Gallery% 81 Achievement% 68 Wizard Run 0 Options --------- Layout 0 ASCII 0 Keyboard 0 Movement Numpad Keybinds 0 Fullscreen 2 Font 18/SmallcapsGlow Map View 76x50 Zoom Use 0% Tactical HUD 1 Map Filters NONE Filters NONE Steam 1 RUN: 9f61d61f-2281-459a-af91-8df2be89a564